bitfinex/quotes_BTCUSD_20251007
["timestamp","ask_amount","ask_price","bid_price","bid_amount"]
[1759856782365,0.00685744,121740.0,121730.0,1.26196562]
[1759856782600,0.00685744,121740.0,121730.0,0.92032562]
[1759856783934,0.00685744,121740.0,121730.0,0.83488562]
[1759856784143,0.00685744,121740.0,121730.0,0.92028562]
[1759856785542,0.00685744,121740.0,121730.0,0.83488562]
[1759856785744,0.00685744,121740.0,121730.0,0.92028562]
[1759856786230,0.00685744,121740.0,121730.0,1.00028242]
[1759856787037,0.00685744,121740.0,121730.0,0.92028562]
[1759856788010,0.00685744,121740.0,121730.0,0.60080562]
[1759856788482,0.00685744,121740.0,121730.0,0.92028562]
[1759856788896,0.00685744,121740.0,121730.0,0.60080562]
[1759856789110,0.84685744,121740.0,121730.0,0.92028562]
[1759856789284,0.42685424,121740.0,121730.0,0.92028562]
[1759856789508,0.34685744,121740.0,121730.0,0.92028562]
[1759856790322,0.34685744,121740.0,121730.0,0.82028562]
[1759856790632,0.34685744,121740.0,121730.0,0.92028562]
[1759856792687,0.34685744,121740.0,121730.0,0.60080562]
[1759856792904,0.34685744,121740.0,121730.0,0.92028562]
[1759856798785,0.56225483,121740.0,121730.0,0.02850759]
[1759856798996,1.72353937,121740.0,121730.0,0.21390759]
[1759856799193,1.72353937,121740.0,121730.0,0.44798759]
[1759856799400,0.78206683,121740.0,121730.0,0.44798759]
[1759856799615,1.71853937,121740.0,121730.0,0.44598759]
[1759856800019,1.72053937,121740.0,121730.0,0.44698759]
[1759856800331,1.74520503,121740.0,121730.0,0.36158759]
[1759856800535,1.74720503,121740.0,121730.0,0.44798759]
[1759856800741,0.80573249,121740.0,121730.0,0.44798759]
[1759856801646,0.75461964,121740.0,121730.0,0.48662759]
[1759856803175,1.4453734,121740.0,121730.0,0.48662759]
[1759856805592,1.4453734,121740.0,121730.0,0.44798759]
[1759856805767,1.4453734,121740.0,121730.0,0.12850759]
[1759856805965,1.4453734,121740.0,121730.0,0.44798759]
[1759856807033,1.5253702,121740.0,121730.0,0.44798759]
[1759856807808,0.75461964,121740.0,121730.0,0.44798759]
[1759856808014,0.34585744,121740.0,121730.0,0.92710562]
[1759856808223,0.51014198,121740.0,121730.0,0.92710562]
[1759856808448,0.00585744,121740.0,121730.0,0.92710562]
[1759856809123,0.50585744,121740.0,121730.0,0.92710562]
[1759856809329,0.84585744,121740.0,121730.0,0.92710562]
[1759856809537,0.34585744,121740.0,121730.0,0.92710562]
[1759856810600,0.34585744,121740.0,121730.0,1.05426979]
[1759856810601,0.00585744,121740.0,121730.0,1.05426979]
[1759856811871,0.00285744,121740.0,121730.0,1.05226979]
[1759856812079,0.00585744,121740.0,121730.0,1.06026979]
[1759856812293,0.00385744,121740.0,121730.0,1.05926979]
[1759856812574,0.00485744,121740.0,121730.0,1.06126979]
[1759856812991,0.00485744,121740.0,121730.0,1.1860992]
[1759856813201,0.00385744,121740.0,121730.0,1.1840992]
[1759856813411,0.00385744,121740.0,121730.0,1.24485374]
[1759856813635,0.00485744,121740.0,121730.0,1.34608887]
[1759856813845,0.09085011,121790.0,121780.0,0.28923057]
[1759856814051,0.06619503,121790.0,121780.0,0.71091057]
[1759856814260,0.06619503,121790.0,121780.0,0.99663966]
[1759856814464,0.56619503,121790.0,121780.0,0.99663966]
[1759856814673,0.28793732,121810.0,121800.0,0.1]
[1759856814890,0.86234538,121810.0,121800.0,0.43628]
[1759856815092,0.58480454,121810.0,121800.0,0.476]
[1759856815296,0.88326196,121810.0,121800.0,0.61194]
[1759856815502,0.88326196,121810.0,121800.0,0.73806361]
[1759856815503,0.02480361,121810.0,121800.0,0.73806361]
[1759856815712,0.16434129,121810.0,121800.0,0.83806361]
[1759856815921,0.50734129,121810.0,121800.0,0.67586]
[1759856816258,0.16734129,121810.0,121800.0,0.84006361]
[1759856816467,0.50934129,121810.0,121800.0,0.67686]
[1759856817045,0.50934129,121810.0,121800.0,0.84106361]
[1759856817248,0.34515116,121810.0,121800.0,0.84106361]
[1759856817848,0.50934129,121810.0,121800.0,0.84106361]
[1759856818027,0.34515116,121810.0,121800.0,0.84106361]
[1759856818887,0.50934129,121810.0,121800.0,0.84106361]
[1759856819039,0.34515116,121810.0,121800.0,0.84106361]
[1759856819247,0.50934129,121810.0,121800.0,0.84106361]
[1759856820668,0.50934129,121810.0,121800.0,0.44282]
[1759856820897,0.58717051,121810.0,121800.0,0.76214]
[1759856821096,0.59075515,121810.0,121800.0,0.76214]
[1759856821305,0.51292593,121810.0,121800.0,0.76214]
[1759856821500,0.51292593,121810.0,121800.0,0.92634361]
[1759856823363,0.3487358,121810.0,121800.0,0.92634361]
[1759856823780,0.51292593,121810.0,121800.0,0.92634361]
[1759856824328,0.51292593,121810.0,121800.0,0.44282]
[1759856824539,1.27910068,121810.0,121800.0,0.3036]
[1759856824742,1.68070068,121810.0,121800.0,0.44728]
[1759856824959,1.76382274,121810.0,121800.0,0.44728]
[1759856825207,1.76382274,121810.0,121800.0,0.128]
[1759856825359,1.76382274,121810.0,121800.0,0.36192]
[1759856825562,1.76382274,121810.0,121800.0,0.44728]
[1759856825763,1.76382274,121810.0,121800.0,0.128]
[1759856825958,2.45368083,121810.0,121800.0,0.128]
[1759856826287,1.76382274,121810.0,121800.0,0.36192]
[1759856826518,1.76382274,121810.0,121800.0,0.128]
[1759856826729,1.76382274,121810.0,121800.0,0.36192]
[1759856827136,1.76082274,121810.0,121800.0,0.35992]
[1759856827304,1.77182274,121810.0,121800.0,0.36192]
[1759856827854,1.77182274,121810.0,121800.0,0.26192]
[1759856828127,1.76982274,121810.0,121800.0,0.002]
[1759856828330,1.77382274,121810.0,121800.0,0.33692]
[1759856828543,1.77810673,121810.0,121800.0,0.33692]
[1759856828772,1.77810673,121810.0,121800.0,0.003]
[1759856828950,1.77810673,121810.0,121800.0,0.33692]
[1759856830880,1.01193198,121810.0,121800.0,0.33692]
[1759856831079,1.70179007,121810.0,121800.0,0.33692]
[1759856832410,1.70179007,121810.0,121800.0,0.23692]
[1759856832629,1.72644501,121810.0,121800.0,0.33692]
[1759856835112,2.25129718,121810.0,121800.0,0.33692]
[1759856835317,2.34657602,121810.0,121800.0,0.33692]
[1759856836630,2.95393115,121810.0,121800.0,0.003]
[1759856836883,0.50423057,121780.0,121770.0,0.11036]
[1759856837021,2.66167863,121780.0,121770.0,0.31892]
[1759856837253,3.69222588,121780.0,121770.0,0.31892]
[1759856837404,3.7968809,121780.0,121770.0,0.31892]
[1759856837611,3.81616023,121780.0,121770.0,0.31892]
[1759856838106,3.82616023,121780.0,121770.0,0.32092]
[1759856838504,3.82916023,121780.0,121770.0,0.32192]
[1759856839082,3.82916023,121780.0,121770.0,0.128]
[1759856839265,3.82916023,121780.0,121770.0,0.44728]
[1759856839716,2.61444997,121780.0,121770.0,0.44728]
[1759856839917,3.82916023,121780.0,121770.0,0.44728]
[1759856840499,3.82916023,121780.0,121770.0,0.103]
[1759856840709,4.45184105,121780.0,121770.0,0.36192]
[1759856841896,4.45184105,121780.0,121770.0,0.128]
[1759856842112,4.45184105,121780.0,121770.0,0.103]
[1759856842318,4.45388992,121780.0,121770.0,0.22024]
[1759856842737,3.84653479,121780.0,121770.0,0.22024]
[1759856842937,4.45388992,121780.0,121770.0,0.22024]
[1759856843150,3.84653479,121780.0,121770.0,0.22024]
[1759856843369,3.84653479,121780.0,121770.0,0.12024]
[1759856843578,3.84653479,121780.0,121770.0,0.22024]
[1759856844318,3.84653479,121780.0,121770.0,0.12024]
[1759856844524,4.45388992,121780.0,121770.0,0.12024]
[1759856844680,4.45388992,121780.0,121770.0,0.22024]
[1759856844897,4.45388992,121780.0,121770.0,0.12024]
[1759856846092,2.63182453,121780.0,121770.0,0.003]
[1759856846300,3.84653479,121780.0,121770.0,0.003]
[1759856846507,4.45388992,121780.0,121770.0,0.003]
[1759856846712,4.68780992,121780.0,121770.0,0.003]
[1759856847587,2.63182453,121780.0,121770.0,0.003]
[1759856847804,4.45388992,121780.0,121770.0,0.003]
[1759856848803,0.50424406,121770.0,121750.0,0.025]
[1759856849004,1.80208987,121760.0,121750.0,0.21036]
[1759856849221,5.05202987,121760.0,121750.0,0.28332]
[1759856849340,4.71675559,121760.0,121750.0,0.28332]
[1759856849950,4.54469695,121760.0,121750.0,0.28332]
[1759856850155,5.21864684,121760.0,121750.0,0.006]
[1759856850351,5.29864364,121760.0,121750.0,0.006]
[1759856850615,5.28332888,121760.0,121750.0,0.006]
[1759856850814,5.2986413,121760.0,121750.0,0.007]
[1759856851981,5.2986413,121760.0,121750.0,0.006]
[1759856852461,3.47757591,121760.0,121750.0,0.007]
[1759856852669,5.2996413,121760.0,121750.0,0.007]
[1759856853018,5.2986413,121760.0,121750.0,0.006]
[1759856853511,0.55255104,121750.0,121740.0,0.35892]
[1759856853674,5.80066558,121750.0,121740.0,0.35892]
[1759856854495,5.72379158,121750.0,121740.0,0.35892]
[1759856854865,5.72430392,121750.0,121740.0,0.35892]
[1759856855067,3.67808112,121750.0,121740.0,0.125]
[1759856855269,0.50428454,121740.0,121730.0,0.08625748]
[1759856855621,5.56049786,121740.0,121730.0,0.02585748]
[1759856855798,6.16285299,121740.0,121730.0,0.33481748]
[1759856856010,6.22744945,121740.0,121730.0,0.02585748]
[1759856856214,6.30744625,121740.0,121730.0,0.00085748]
[1759856856415,6.54240625,121740.0,121730.0,0.00385748]
[1759856856630,6.60641548,121740.0,121730.0,0.01085748]
[1759856856833,6.60241548,121740.0,121730.0,0.00085748]
[1759856857066,6.61341548,121740.0,121730.0,0.00485748]
[1759856858692,6.61770214,121740.0,121730.0,0.00485748]
[1759856859309,6.64237157,121740.0,121730.0,0.00485748]
[1759856859520,2.82108764,121740.0,121730.0,0.02985748]
[1759856859799,2.58589064,121740.0,121730.0,0.02985748]
[1759856861257,3.42720577,121740.0,121730.0,0.00485748]
[1759856863140,2.82146722,121740.0,121730.0,0.00485748]
[1759856863353,2.90146402,121740.0,121730.0,0.00485748]
[1759856866150,3.53977934,121740.0,121730.0,1e-08]
[1759856866594,2.93161592,121740.0,121730.0,1e-08]
[1759856868405,2.69765592,121740.0,121730.0,1e-08]
[1759856868609,2.93161592,121740.0,121730.0,1e-08]
[1759856868803,2.69765592,121740.0,121730.0,1e-08]
[1759856869062,2.93161592,121740.0,121730.0,1e-08]
[1759856870013,1.45117718,121740.0,121730.0,1e-08]
[1759856870372,2.66750402,121740.0,121730.0,1e-08]
[1759856870731,2.90146402,121740.0,121730.0,1e-08]
[1759856872732,2.58750722,121740.0,121730.0,1e-08]
[1759856873582,1.9793438,121740.0,121730.0,1e-08]
[1759856873788,1.97936207,121740.0,121730.0,1e-08]
[1759856874002,0.49300565,121740.0,121730.0,0.45856001]
[1759856874361,1.44116907,121740.0,121730.0,0.45856001]
[1759856874566,1.52116587,121740.0,121730.0,0.45856001]
[1759856875898,0.82988039,121740.0,121730.0,0.45856001]
[1759856876116,0.2082887,121740.0,121730.0,0.70088804]
[1759856876326,0.2082887,121740.0,121730.0,0.67147001]
[1759856876531,0.5482887,121740.0,121730.0,0.57439001]
[1759856876739,0.5432887,121740.0,121730.0,0.83576804]
[1759856876973,0.5552887,121740.0,121730.0,0.83576804]
[1759856877278,0.37166943,121740.0,121730.0,0.83576803]
[1759856877459,0.51428454,121740.0,121730.0,0.83676803]
[1759856877666,0.50728454,121740.0,121730.0,0.83676803]
[1759856877894,0.60128134,121740.0,121730.0,0.43851]
[1759856878111,0.58428134,121740.0,121730.0,0.65979]
[1759856878316,0.58428134,121740.0,121730.0,0.3315842]
[1759856878521,1.20244476,121740.0,121730.0,0.62156]
[1759856879284,0.59428134,121740.0,121730.0,0.62156]
[1759856879495,0.59428134,121740.0,121730.0,0.46649803]
[1759856879706,0.59428134,121740.0,121730.0,0.78585803]
[1759856880257,0.59428134,121740.0,121730.0,0.53616]
[1759856880471,0.59428134,121740.0,121730.0,0.62156]
[1759856881451,1.20244476,121740.0,121730.0,0.62156]
[1759856881855,0.71293134,121740.0,121730.0,0.62156]
[1759856882072,1.32109476,121740.0,121730.0,0.78585803]
[1759856882717,1.32109476,121740.0,121730.0,0.3022]
[1759856882936,1.32109476,121740.0,121730.0,0.35992]
[1759856883133,1.32109476,121740.0,121730.0,0.44532]
[1759856883350,1.34575981,121740.0,121730.0,0.44532]
[1759856884469,1.34575981,121740.0,121730.0,0.60961803]
[1759856884696,1.42888187,121740.0,121730.0,0.126]
[1759856884915,1.44422835,121740.0,121730.0,0.44532]
[1759856885348,1.50474482,121740.0,121730.0,0.44532]
[1759856886034,2.11290824,121740.0,121730.0,0.126]
[1759856886294,2.11290824,121740.0,121730.0,0.33492]
[1759856886985,0.8965814,121740.0,121730.0,0.33492]
[1759856887210,1.49474482,121740.0,121730.0,0.33392]
[1759856887438,1.41474802,121740.0,121730.0,0.33392]
[1759856887656,1.41974802,121740.0,121730.0,0.33492]
[1759856887879,2.04491144,121740.0,121730.0,0.33492]
[1759856888103,2.12490824,121740.0,121730.0,0.33492]
[1759856888294,2.56650824,121740.0,121730.0,0.101]
[1759856888532,2.56650824,121740.0,121730.0,0.33492]
[1759856891229,1.3501814,121740.0,121730.0,0.33492]
[1759856891430,2.56650824,121740.0,121730.0,0.33492]
[1759856893829,2.56650824,121740.0,121730.0,0.23492]
[1759856894030,2.56650824,121740.0,121730.0,0.33492]
[1759856897875,1.3501814,121740.0,121730.0,0.33492]
[1759856898056,2.56650824,121740.0,121730.0,0.33492]
[1759856898443,1.87834802,121740.0,121730.0,0.35992]
[1759856898641,2.48651144,121740.0,121730.0,0.001]
[1759856898859,2.48651144,121740.0,121730.0,0.101]
[1759856899068,2.48651144,121740.0,121730.0,0.2364]
[1759856899276,2.56650824,121740.0,121730.0,0.2364]
[1759856899815,2.56650824,121740.0,121730.0,0.101]
[1759856900023,2.56650824,121740.0,121730.0,0.31912]
[1759856900540,2.61582824,121740.0,121730.0,0.33492]
[1759856901086,1.3995014,121740.0,121730.0,0.23492]
[1759856901387,2.61582824,121740.0,121730.0,0.33492]
[1759856902420,2.61582824,121740.0,121730.0,0.101]
[1759856902599,2.61582824,121740.0,121730.0,0.33492]
[1759856902896,2.61582824,121740.0,121730.0,0.23492]
[1759856903103,2.61582824,121740.0,121730.0,0.33492]
[1759856903335,2.61582824,121740.0,121730.0,0.23492]
[1759856903486,2.61582824,121740.0,121730.0,0.33492]
[1759856904988,2.61584208,121740.0,121730.0,0.33492]
[1759856905803,2.61584208,121740.0,121730.0,0.23492]
[1759856906026,2.61584208,121740.0,121730.0,0.33492]
[1759856906428,2.61584208,121740.0,121730.0,0.101]
[1759856906666,2.61584208,121740.0,121730.0,0.33492]
[1759856907707,2.00767866,121740.0,121730.0,0.35992]
[1759856908008,1.92768186,121740.0,121730.0,0.35992]
[1759856908231,1.91232154,121740.0,121730.0,0.35992]
[1759856908440,1.92768779,121740.0,121730.0,0.35992]
[1759856909550,1.91232154,121740.0,121730.0,0.35992]
[1759856909705,1.91232154,121740.0,121730.0,0.46386]
[1759856911153,1.91232154,121740.0,121730.0,0.39974]
[1759856912178,1.25483812,121740.0,121730.0,0.46386]
[1759856912335,1.17171606,121740.0,121730.0,0.59259]
[1759856912547,1.17171606,121740.0,121730.0,0.50258]
[1759856913687,1.25171286,121740.0,121730.0,0.50258]
[1759856913882,1.25171286,121740.0,121730.0,0.67009]
[1759856914081,0.73011606,121740.0,121730.0,0.67009]
[1759856914674,0.73011606,121740.0,121730.0,0.58008]
[1759856916094,0.73011606,121740.0,121730.0,0.50308]
[1759856916300,2.9618797,121740.0,121730.0,1e-08]
[1759856916511,3.21175075,121740.0,121730.0,1e-08]
[1759856916719,3.2750769,121740.0,121730.0,1e-08]
[1759856916928,0.55364503,121710.0,121700.0,5.01185139]
[1759856917132,6.54205265,121710.0,121700.0,4.54689186]
[1759856917338,6.54205265,121710.0,121700.0,4.43382904]
[1759856917540,6.64672769,121710.0,121700.0,4.43382904]
[1759856917766,7.25489111,121710.0,121700.0,4.04958271]
[1759856917988,7.25489111,121710.0,121700.0,3.9577989]
[1759856918199,7.25889111,121710.0,121700.0,3.72567655]
[1759856918418,7.25889111,121710.0,121700.0,3.67804174]
[1759856918867,7.25489111,121710.0,121700.0,3.67804174]
[1759856919059,7.26089111,121710.0,121700.0,3.67804174]
[1759856919269,7.28289111,121710.0,121700.0,3.67804174]
[1759856920055,7.23357111,121710.0,121700.0,3.67804174]
[1759856920707,7.21819532,121710.0,121700.0,3.67804174]
[1759856920903,7.23353113,121710.0,121700.0,3.67804174]
[1759856921317,7.21581668,121710.0,121700.0,3.67804174]
[1759856922817,7.21581668,121710.0,121700.0,3.67957951]
[1759856923246,7.21585668,121710.0,121700.0,3.67957951]
[1759856924072,6.98193668,121710.0,121700.0,3.67957951]
[1759856924283,7.21585668,121710.0,121700.0,3.67957951]
[1759856924500,6.98193668,121710.0,121700.0,3.67957951]
[1759856924721,4.27673784,121710.0,121700.0,3.67957951]
[1759856924931,5.49306468,121710.0,121700.0,3.67957951]
[1759856925157,6.10226205,121710.0,121700.0,3.67957951]
[1759856926596,4.04281784,121710.0,121700.0,3.67957951]
[1759856926798,5.25983398,121710.0,121700.0,3.67957951]
[1759856927004,5.49375398,121710.0,121700.0,3.67957951]
[1759856927866,5.25983398,121710.0,121700.0,3.67957951]
[1759856927996,5.49372258,121710.0,121700.0,3.67957951]
[1759856928201,4.59079468,121710.0,121700.0,3.67957951]
[1759856928397,4.50199768,121710.0,121700.0,3.67957951]
[1759856929084,4.26807768,121710.0,121700.0,3.67957951]
[1759856929841,4.26807768,121710.0,121700.0,3.77957951]
[1759856930255,3.05916961,121710.0,121700.0,3.80457951]
[1759856930481,3.66767768,121710.0,121700.0,4.03849951]
[1759856931077,4.54025765,121710.0,121700.0,3.67957951]
[1759856931505,4.54025765,121710.0,121700.0,3.91349951]
[1759856931702,4.54025622,121710.0,121700.0,3.67957951]
[1759856932085,3.93174815,121710.0,121700.0,3.91349951]
[1759856932436,4.54025622,121710.0,121700.0,3.91349951]
[1759856934023,4.54025549,121710.0,121700.0,3.91349951]
[1759856934267,4.54025549,121710.0,121700.0,3.67957951]
[1759856934463,6.4592197,121710.0,121700.0,2.91806422]
[1759856934638,6.5023849,121710.0,121700.0,2.82256039]
[1759856934882,6.47684987,121710.0,121700.0,2.63220883]
[1759856935095,6.45484987,121710.0,121700.0,2.43987238]
[1759856935305,6.45484987,121710.0,121700.0,2.29473041]
[1759856935515,6.47084987,121710.0,121700.0,2.27008213]
[1759856935646,6.47084987,121710.0,121700.0,1.92350826]
[1759856935647,6.44884987,121710.0,121700.0,1.92350826]
[1759856935849,6.15848987,121710.0,121700.0,1.72271334]
[1759856936055,4.56688566,121710.0,121700.0,1.72271334]
[1759856936267,4.53788566,121710.0,121700.0,1.44349324]
[1759856936478,4.56488566,121710.0,121700.0,1.44349324]
[1759856936673,4.57088566,121710.0,121700.0,1.44349324]
[1759856937047,4.55325549,121710.0,121700.0,1.44349324]
[1759856937247,4.31333549,121710.0,121700.0,1.44349324]
[1759856937449,4.54825549,121710.0,121700.0,1.44349324]
[1759856939026,4.31433549,121710.0,121700.0,1.44349324]
[1759856939229,4.54825549,121710.0,121700.0,1.44349324]
[1759856940480,4.56588977,121710.0,121700.0,1.44349324]
[1759856940715,4.56592977,121710.0,121700.0,1.44349324]
[1759856941151,4.57392977,121710.0,121700.0,1.44349324]
[1759856941697,6.39945398,121710.0,121700.0,1.44349324]
[1759856941908,6.39945398,121710.0,121700.0,0.91338566]
[1759856942130,6.39945398,121710.0,121700.0,0.79158614]
[1759856942993,6.42498901,121710.0,121700.0,0.79158614]
[1759856943694,6.42498901,121710.0,121700.0,0.41858893]
[1759856945117,6.42502363,121710.0,121700.0,0.41858893]
[1759856945683,0.53449043,121700.0,121690.0,0.0004]
[1759856945891,0.58382394,121690.0,121680.0,1e-08]
[1759856946093,0.99528554,121680.0,121670.0,1e-08]
[1759856946303,9.61862512,121680.0,121670.0,1e-08]
[1759856946520,9.62191694,121680.0,121670.0,1e-08]
[1759856946730,9.70620359,121680.0,121670.0,1e-08]
[1759856946934,9.78872788,121680.0,121670.0,1e-08]
[1759856947372,9.76657735,121680.0,121670.0,1e-08]
[1759856947578,9.74104232,121680.0,121670.0,1e-08]
[1759856947799,9.75004232,121680.0,121670.0,1e-08]
[1759856948263,9.54308232,121680.0,121670.0,1e-08]
[1759856948470,8.03695811,121680.0,121670.0,1e-08]
[1759856948641,7.71755811,121680.0,121670.0,1e-08]
[1759856948855,8.03695811,121680.0,121670.0,1e-08]
[1759856949440,7.71755811,121680.0,121670.0,1e-08]
[1759856949645,8.03695811,121680.0,121670.0,1e-08]
[1759856949858,7.71755811,121680.0,121670.0,1e-08]
[1759856950042,7.95151811,121680.0,121670.0,1e-08]
[1759856950249,8.03695811,121680.0,121670.0,1e-08]
[1759856950649,6.81994197,121680.0,121670.0,1e-08]
[1759856952061,0.58386446,121660.0,121650.0,0.0004]
[1759856952284,5.74070984,121660.0,121650.0,0.0004]
[1759856952494,5.97466984,121660.0,121650.0,0.0004]
[1759856952733,5.99935915,121660.0,121650.0,0.00142586]
[1759856952989,7.82488336,121660.0,121650.0,0.00142586]
[1759856953395,7.83088336,121660.0,121650.0,0.00142586]
[1759856953807,7.84611319,121660.0,121650.0,0.00142586]
[1759856954007,7.86811319,121660.0,121650.0,0.00142586]
[1759856954217,7.85288336,121660.0,121650.0,0.00142586]
[1759856955242,7.87054801,121660.0,121650.0,0.00142586]
[1759856955416,7.86454801,121660.0,121650.0,0.00142586]
[1759856955655,7.87154801,121660.0,121650.0,0.00142586]
[1759856956585,7.84954801,121660.0,121650.0,0.00142586]
[1759856956786,7.87453996,121660.0,121650.0,0.00142586]
[1759856957432,7.87453907,121660.0,121650.0,0.00142586]
[1759856960075,7.89002442,121660.0,121650.0,0.00142586]
[1759856960307,7.89802442,121660.0,121650.0,0.00142586]
[1759856962441,9.72354863,121660.0,121650.0,0.00142586]
[1759856962801,9.77123419,121660.0,121650.0,1e-08]
[1759856963006,9.74569916,121660.0,121650.0,1e-08]
[1759856963221,9.77523321,121660.0,121650.0,1e-08]
[1759856963701,9.75023321,121660.0,121650.0,1e-08]
[1759856963840,9.77723321,121660.0,121650.0,1e-08]
[1759856964051,9.77023321,121660.0,121650.0,1e-08]
[1759856964247,0.55373959,121640.0,121630.0,0.0004]
[1759856964514,7.7578365,121640.0,121630.0,0.0004]
[1759856965087,9.58336071,121640.0,121630.0,0.0004]
[1759856965299,7.7578365,121640.0,121630.0,0.0004]
[1759856965536,9.59051165,121640.0,121630.0,0.0004]
[1759856966086,9.61980212,121640.0,121630.0,0.0004]
[1759856966719,9.62309484,121640.0,121630.0,0.0004]
[1759856966920,9.73072537,121640.0,121630.0,0.0004]
[1759856967124,9.79200667,121640.0,121630.0,0.0004]
[1759856967343,4.67655343,121630.0,121620.0,0.0004]
[1759856967560,8.28914066,121630.0,121620.0,0.0004]
[1759856967773,7.63569119,121630.0,121620.0,0.0004]
[1759856967981,7.23903259,121630.0,121620.0,0.0004]
[1759856968232,7.23103259,121630.0,121620.0,0.0004]
[1759856968451,7.23703259,121630.0,121620.0,0.0004]
[1759856968654,7.84554066,121630.0,121620.0,0.0004]
[1759856969071,7.86754066,121630.0,121620.0,0.0004]
[1759856969627,7.63354066,121630.0,121620.0,0.0004]
[1759856969825,7.86754066,121630.0,121620.0,0.0004]
[1759856970034,7.63354066,121630.0,121620.0,0.0004]
[1759856970240,7.63354066,121630.0,121620.0,0.00193929]
[1759856970699,4.71606055,121630.0,121620.0,0.00193929]
[1759856970909,3.3739349,121630.0,121620.0,0.02693929]
[1759856971107,3.98244297,121630.0,121620.0,0.02693929]
[1759856971622,4.93095104,121630.0,121620.0,0.02693929]
[1759856972145,4.93099104,121630.0,121620.0,0.02693929]
[1759856974093,5.56965101,121630.0,121620.0,0.00193929]
[1759856975015,5.58734599,121630.0,121620.0,0.00193929]
[1759856975251,3.76182178,121630.0,121620.0,0.00193929]
[1759856975451,5.58734599,121630.0,121620.0,0.00193929]
[1759856976083,4.71464602,121630.0,121620.0,0.00193929]
[1759856976295,4.93095104,121630.0,121620.0,0.00193929]
[1759856977188,4.95294961,121630.0,121620.0,0.00193929]
[1759856977370,4.95299011,121630.0,121620.0,0.00193929]
[1759856977933,4.97768265,121630.0,121620.0,0.00193929]
[1759856985798,0.55376663,121620.0,121610.0,0.00047]
[1759856986013,2.6539255,121620.0,121610.0,0.02547]
[1759856986201,3.52706547,121620.0,121610.0,0.00047]
[1759856986609,3.55176259,121620.0,121610.0,0.00047]
[1759856986832,3.31728259,121620.0,121610.0,0.00047]
[1759856987007,3.55700259,121620.0,121610.0,0.00047]
[1759856987210,2.95008824,121620.0,121610.0,0.00047]
[1759856987409,2.91356024,121620.0,121610.0,0.00047]
[1759856987632,2.64868834,121620.0,121610.0,0.00047]
[1759856987837,2.90536834,121620.0,121610.0,0.00047]
[1759856987979,2.88336834,121620.0,121610.0,0.00047]
[1759856988542,2.90836834,121620.0,121610.0,0.00047]
[1759856988920,2.91536834,121620.0,121610.0,0.00047]
[1759856990378,2.94552024,121620.0,121610.0,0.00047]
[1759856990696,1.72691038,121620.0,121610.0,0.00047]
[1759856990933,2.94552024,121620.0,121610.0,0.00047]
[1759856991556,2.94552024,121620.0,121610.0,0.0009832]
[1759856991758,2.94544024,121620.0,121610.0,0.0009832]
[1759856993124,1.72683038,121620.0,121610.0,0.0009832]
[1759856993300,2.94544024,121620.0,121610.0,0.0009832]
[1759856997068,2.71084024,121620.0,121610.0,0.0009832]
[1759856997276,0.80318824,121620.0,121610.0,0.1259832]
[1759856997457,1.41249317,121620.0,121610.0,0.1259832]
[1759856997676,2.0217981,121620.0,121610.0,0.1259832]
[1759856998083,1.9967981,121620.0,121610.0,0.1259832]
[1759856998206,1.9897981,121620.0,121610.0,0.1259832]
[1759856998424,1.40249317,121620.0,121610.0,0.1259832]
[1759856998648,2.0187981,121620.0,121610.0,0.1259832]
[1759856999122,1.35317317,121620.0,121610.0,0.2256332]
[1759856999309,0.27810624,121620.0,121610.0,0.2256332]
[1759856999529,1.19404274,121620.0,121610.0,0.2256332]
[1759856999745,1.16934562,121620.0,121610.0,0.2256332]
[1759856999950,0.44212206,121620.0,121610.0,0.92200335]
[1759857000120,0.359,121620.0,121610.0,0.92200335]
[1759857000355,0.343,121620.0,121610.0,0.92100335]
[1759857000811,0.362,121620.0,121610.0,0.92300335]
[1759857001025,0.343,121620.0,121610.0,0.92100335]
[1759857001226,0.343,121620.0,121610.0,0.4366232]
[1759857001432,0.343,121620.0,121610.0,0.92100335]
[1759857001651,0.34,121620.0,121610.0,0.92100335]
[1759857001872,0.357,121620.0,121610.0,0.92300335]
[1759857002296,0.36,121620.0,121610.0,0.92400335]
[1759857002542,0.52444663,121620.0,121610.0,0.4396232]
[1759857002763,1.19674836,121620.0,121610.0,0.3387332]
[1759857002985,1.19674836,121620.0,121610.0,0.7575032]
[1759857003212,1.04930173,121620.0,121610.0,0.92396335]
[1759857003463,1.19674836,121620.0,121610.0,0.60208335]
[1759857003672,1.21374836,121620.0,121610.0,0.6605732]
[1759857004124,1.21374836,121620.0,121610.0,0.82503335]
[1759857004331,1.04930173,121620.0,121610.0,0.82503335]
[1759857004770,1.04930173,121620.0,121610.0,0.6605732]
[1759857005233,1.21374836,121620.0,121610.0,0.6605732]
[1759857005451,1.04930173,121620.0,121610.0,0.82503335]
[1759857005667,1.04930173,121620.0,121610.0,0.92392335]
[1759857006379,1.04930173,121620.0,121610.0,0.82503335]
[1759857006810,1.21374836,121620.0,121610.0,0.6237132]
[1759857007461,1.21374836,121620.0,121610.0,0.92392335]
[1759857007462,1.04930173,121620.0,121610.0,0.92392335]
[1759857007882,0.4399968,121620.0,121610.0,0.92392335]
[1759857008117,0.36,121620.0,121610.0,0.92392335]
[1759857012062,0.52444663,121620.0,121610.0,0.82487335]
[1759857012273,1.13375156,121620.0,121610.0,0.82487335]
[1759857012481,0.96930493,121620.0,121610.0,0.60408335]
[1759857012688,1.13375156,121620.0,121610.0,0.60408335]
[1759857012891,1.13375156,121620.0,121610.0,0.4396232]
[1759857013123,1.21374836,121620.0,121610.0,0.4396232]
[1759857013338,1.90617535,121620.0,121610.0,0.2144632]
[1759857013622,0.68756549,121620.0,121610.0,0.6838232]
[1759857013848,1.29687042,121620.0,121610.0,0.5480732]
[1759857014063,1.29687042,121620.0,121610.0,0.3485832]
[1759857014277,1.29687042,121620.0,121610.0,0.4485832]
[1759857014726,1.29687042,121620.0,121610.0,0.5481132]
[1759857015672,1.21687362,121620.0,121610.0,0.5481132]
[1759857015872,1.21687362,121620.0,121610.0,0.3625932]
[1759857016114,1.21687362,121620.0,121610.0,0.4868432]
[1759857016560,1.21687362,121620.0,121610.0,0.5480732]
[1759857017602,0.44312206,121620.0,121610.0,0.71253335]
[1759857017804,0.36,121620.0,121610.0,0.92352335]
[1759857023383,0.3535,121620.0,121610.0,0.92352335]
[1759857024682,0.02,121620.0,121610.0,1.08664221]
[1759857024901,0.02,121620.0,121610.0,1.42860221]
[1759857025098,0.02,121620.0,121610.0,0.76708221]
[1759857025307,0.02,121620.0,121610.0,1.42860221]
[1759857026093,0.02,121620.0,121610.0,1.34860541]